Cogmind - Beta 14 @@@ ROGUE MODE // 2025.03.17 @ 15:11:10 Player: Zoe Result: Destroyed by G-47 Trooper with Particle Gun Performance ------------- Evolutions (2) 1000 Regions Visited (7) 1400 Robots Destroyed (146) 730 Value Destroyed (4353) 4353 Prototype IDs (31) 620 Alien Tech Used (0) 0 Bonus (625) 625 TOTAL SCORE: 8728 Bonus ------- High Alert Combat Kills 325 Aligned with FarCom 300 Cogmind --------- Core Integrity 0/550 Matter 300/300 Energy 160/280 System Corruption 11% Temperature Cool (27) Movement Walking (130) Location -8/Storage Parts ------- > --- POWER (1) -------- Cooled Ion Engine > --- PROPULSION (4) --- Improved Titanium Leg Improved Titanium Leg Improved Titanium Leg > --- UTILITY (4) ------ Improved Heat Sink Medium Storage Unit Advanced Targeting Computer > --- WEAPON (2) ------- Shock Maul > --- INVENTORY (10) --- Light Ion Engine Micro Nuclear Core Peak State ------------ > --- POWER ------------ Micro Nuclear Core > --- PROPULSION ------- Improved Carbon-fiber Leg Improved Carbon-fiber Leg Improved Carbon-fiber Leg Improved Carbon-fiber Leg > --- UTILITY ---------- Improved Heat Sink Medium Storage Unit Improved Signal Interpreter Trap Reconfigurator > --- WEAPON ----------- Gauss Rifle Gauss Rifle > --- INVENTORY -------- Micro Nuclear Core Micro Nuclear Core Improved Titanium Leg Improved Titanium Leg Improved Titanium Leg Improved Titanium Leg Utility Shielding Heavy Ion Cannon Gauss Rifle Heavy Missile Launcher [Rating: 47] Favorites ----------- Power Micro Nuclear Core Engine Heavy Ion Engine Power Core Micro Nuclear Core Propulsion Aluminum Leg Leg Aluminum Leg Utility Medium Storage Unit Device Improved Heat Sink Storage Medium Storage Unit Processor Improved Signal Interpreter Protection Improved Light Armor Plating Weapon Gauss Rifle Energy Gun Heavy Particle Gun Energy Cannon Heavy Ion Cannon Ballistic Gun Gauss Rifle Launcher Heavy Missile Launcher Impact Weapon Shock Maul Build | -11 -10 -9 -9 -9 -8 -8 -8 ------- Run | Yrd Mat Mat Min Exi Min Mat Sto Slots Evolved 4 | . . 2 . . . 2 . Power . | . . . . . . . . Propulsion 2 | . . 2 . . . . . Utility 2 | . . . . . . 2 . Weapon . | . . . . . . . . Parts Attached 106 | 7 12 25 2 1 9 19 31 Power 16 | 1 2 6 . . 1 1 5 Engine 12 | 1 1 6 . . . . 4 Core 4 | . 1 . . . 1 1 1 Reactor . | . . . . . . . . Propulsion 48 | 2 6 11 2 . 4 9 14 Treads . | . . . . . . . . Leg 48 | 2 6 11 2 . 4 9 14 Wheel . | . . . . . . . . Hover . | . . . . . . . . Flight . | . . . . . . . . Utility 16 | 1 2 2 . 1 1 4 5 Device 8 | . 2 1 . 1 . 3 1 Storage 2 | 1 . 1 . . . . . Processor 3 | . . . . . 1 1 1 Hackware . | . . . . . . . . Protection 3 | . . . . . . . 3 Artifact . | . . . . . . . . Weapon 26 | 3 2 6 . . 3 5 7 Energy Gun 11 | 1 2 4 . . . 1 3 Energy Cannon 1 | . . . . . . . 1 Ballistic Gun 10 | 2 . 2 . . 3 3 . Ballistic Cannon . | . . . . . . . . Launcher 3 | . . . . . . 1 2 Special Weapon . | . . . . . . . . Impact Weapon 1 | . . . . . . . 1 Slashing Weapon . | . . . . . . . . Piercing Weapon . | . . . . . . . . Special Melee Weapon . | . . . . . . . . Unidentified Prototypes 8 | . . 3 . . . 1 4 Corrupted Parts 1 | . . . . . . . 1 System Corruption 4 | . . . . . . . 4 Parts Lost 33 | . 5 5 . . 1 2 20 Power 7 | . 2 2 . . . . 3 Propulsion 12 | . 1 1 . . . 1 9 Utility 5 | . . . . . . . 5 Weapon 9 | . 2 2 . . 1 1 3 Highest Loss Streak 7 | . 3 2 . . 1 2 7 To Critical Strikes . | . . . . . . . . Average Slot Usage (%) 96 | . 90 98 100 100 100 99 91 Engine 4 | . 5 10 11 11 4 . 3 Core 4 | . 6 . . . 6 9 4 Leg 38 | . 27 44 44 44 44 36 35 Device 9 | . 7 10 11 11 1 17 6 Storage 10 | . 14 11 11 11 11 9 9 Processor 6 | . . . . . 9 9 9 Protection 1 | . . . . . . . 6 Energy Gun 4 | . 7 11 . . . 6 3 Energy Cannon 1 | . . . . . . . 6 Ballistic Gun 11 | . 20 10 22 22 22 11 . Impact Weapon 1 | . . . . . . . 5 Peak Build Rating 47 | 6 12 18 18 24 24 47 45 Average Rating 29 | 4 8 15 18 21 20 45 35 On Entrance 18 | . 6 12 18 18 24 21 45 Naked Turns . | . . . . . . . . Heaviest Build 35 | 13 16 25 25 25 26 26 35 Greatest Support 73 | 20 20 40 40 40 45 72 73 Greatest Overweight (x) 1 | . . . . . . . 1 Average Overweight (x) . | . . . . . . . . Largest Inventory Capacity 10 | 8 8 10 10 10 10 10 10 Average Capacity 9 | 6 8 8 10 10 10 10 10 Most Carried 10 | 2 8 10 10 10 10 10 10 Average Carried 8 | . 5 8 10 9 9 9 8 Final Capacity 10 | 8 8 10 10 10 10 10 10 Final Carried 10 | 2 7 10 10 9 10 10 2 Class Distribution -------------------- 79% | Scavenger-Mutant 20% | Mutant Dominant Class ---------------- Mutant | -10/Materials Scavenger-Mutant | -9/Materials Scavenger-Mutant | -9/Mines Mutant | -9/Exiles Scavenger-Mutant | -8/Mines Scavenger-Mutant | -8/Materials Scavenger-Mutant | -8/Storage Resources | -11 -10 -9 -9 -9 -8 -8 -8 ----------- Run | Yrd Mat Mat Min Exi Min Mat Sto Matter Collected 2378 | 232 239 441 44 . 384 730 308 Remotely . | . . . . . . . . Salvage Created 6650 | . 559 1738 82 . 532 1369 2370 Parts 266 | . 26 102 2 . 23 67 46 Haulers Intercepted 9 | . 1 3 . . . 3 2 Recyclers Shooed 5 | . . 3 . . . 2 . Parts Field Recycled . | . . . . . . . . Retrieved Matter . | . . . . . . . . Parts Self-Destructed . | . . . . . . . . Prevented . | . . . . . . . . Kills | -11 -10 -9 -9 -9 -8 -8 -8 ------- Run | Yrd Mat Mat Min Exi Min Mat Sto Combat Hostiles Destroyed 92 | . 8 21 2 . 6 16 39 Melee 15 | . . . . . . . 15 Guns 52 | . 8 20 2 . 6 13 3 Cannons 2 | . . . . . . . 2 AOE 3 | . . . . . . 3 . Classes Destroyed 13 | . 5 5 . . 1 . 2 Worker 13 | . 1 2 . . 2 6 2 Builder 1 | . . . . . . . 1 Hauler 9 | . 1 3 . . . 3 2 Recycler 21 | . 1 7 . . 2 3 8 Mechanic 2 | . . . . . . . 2 Operator 1 | . . 1 . . . . . Watcher 9 | . 1 4 . . . 4 . Swarmer 7 | . . 3 . . . . 4 Grunt 58 | . 8 12 2 . 2 9 25 Brawler 3 | . . 1 . . 1 1 . Duelist 3 | . . 2 . . . . 1 Sentry 15 | . . 3 . . . 4 8 Hunter 6 | . . . . . 3 2 1 Best Kill Streak 9 | . 3 9 2 . 2 5 8 Combat Bots Only 5 | . 2 4 2 . 2 3 5 Max Kills in Single Turn 3 | . 1 2 1 . 2 3 1 Gunslinging . | . . . . . . . . Exploded 1 | . . . . . . 1 . Melee 1 | . . . . . . . 1 Uniques/NPCs Destroyed . | . . . . . . . . Combat | -11 -10 -9 -9 -9 -8 -8 -8 -------- Run | Yrd Mat Mat Min Exi Min Mat Sto Hostile Shots Fired 586 | . 81 91 2 . 41 102 269 Missed 166 | . 19 23 . . 10 30 84 Damage Taken 6434 | . 890 955 32 . 526 958 3073 Core 851 | . 187 80 16 . 10 128 430 Absorbed by Shields . | . . . . . . . . Regen/Repaired (Parts) 186 | . . 32 . . . 33 121 Core Remaining (%) 66 | 100 25 . . . 73 . . Volleys Fired 335 | . 67 92 4 2 44 91 35 Largest 2 | . 2 2 2 2 2 2 2 Hottest 120 | . 70 115 46 46 56 83 120 Shots Fired 633 | . 134 153 8 4 88 178 68 Gun 608 | . 134 153 8 4 88 175 46 Cannon 22 | . . . . . . . 22 Launcher 3 | . . . . . . 3 . Special . | . . . . . . . . Kinetic 406 | . 112 67 8 4 88 116 11 Thermal 180 | . 22 42 . . . 59 57 Explosive 3 | . . . . . . 3 . Electromagnetic 44 | . . 44 . . . . . Robot Hit Streak 11 | . 8 10 2 . 10 11 9 Robot Miss Streak 9 | . 5 3 1 . 9 5 2 Penetration Max 1 | . . . . . 1 1 . Secondary Targets 6 | . 2 2 . . 1 1 . Max Gunslinging Chain 1 | . 1 1 . . 1 1 . Shots Hit Robots 458 | . 83 111 4 . 39 99 122 Core Hits 195 | . 30 64 3 . 17 56 25 Critical Kills 12 | . 1 . . . 1 1 9 Critical Parts Destroyed 31 | . 1 . . . 1 1 28 Critical Strikes 53 | . 3 4 . . 2 5 39 Burn 10 | . 1 4 . . . 3 2 Destroy 7 | . 2 . . . 2 2 1 Smash 36 | . . . . . . . 36 Melee Attacks 150 | . . . . . . . 150 Impact 150 | . . . . . . . 150 Slashing . | . . . . . . . . Piercing . | . . . . . . . . Sneak Attacks 20 | . . . . . . . 20 Combat Hostiles 4 | . . . . . . . 4 Follow-up Attacks . | . . . . . . . . Damage Inflicted 11847 | . 733 2137 63 . 657 2293 5964 Guns 5733 | . 733 1816 63 . 657 1900 564 Cannons 351 | . . . . . . . 351 Explosions 714 | . . 321 . . . 393 . Melee 5049 | . . . . . . . 5049 Ramming . | . . . . . . . . Kinetic 3596 | . 571 745 63 . 657 1396 164 Thermal 2156 | . 162 739 . . . 504 751 Explosive 393 | . . . . . . 393 . Electromagnetic 653 | . . 653 . . . . . Impact 5049 | . . . . . . . 5049 Slashing . | . . . . . . . . Piercing . | . . . . . . . . Highest Corruption 11 | . 2 . . . . . 11 Average Corruption 4 | . 2 . . . . . 5 Corruption Purged . | . . . . . . . . Corruption Blocked . | . . . . . . . . Effects 6 | . 3 . . . . . 3 Message Errors 1 | . 1 . . . . . . Matter Fused 1 | . . . . . . . 1 Energy Discharges 2 | . 1 . . . . . 1 Data Loss (minor) 1 | . 1 . . . . . . Data Loss (major) 1 | . . . . . . . 1 Overload Shots . | . . . . . . . . Overflow Damage 2260 | . . 7 . . . . 2253 Projectiles . | . . . . . . . . Explosions 7 | . . 7 . . . . . Melee 2253 | . . . . . . . 2253 Knockbacks 17 | . . . . . . . 17 Impact 17 | . . . . . . . 17 Kinetic . | . . . . . . . . Secondary . | . . . . . . . . Self-Inflicted Damage 141 | . . 127 . . 14 . . Shots 6 | . . 5 . . 1 . . Rammed . | . . . . . . . . Targets Rammed . | . . . . . . . . Kicked . | . . . . . . . . Crushed . | . . . . . . . . Highest Temperature 122 | . 69 39 . . 39 16 122 Average Temperature 24 | . 18 10 . . 24 9 40 Received Heat Transfer 2544 | . 555 333 18 . 162 360 1116 Siege Activations . | . . . . . . . . Robots Corrupted 24 | . . . . . . . 24 Combat Hostiles 18 | . . . . . . . 18 Parts Fried 33 | . . 2 . . . . 31 Impact Corruptions 65 | . . . . . . . 65 Robots Melted 2 | . . 1 . . . . 1 Combat Hostiles 2 | . . 1 . . . . 1 Parts Melted 8 | . . 3 . . . 2 3 Heat Transferred 4951 | . 555 1806 . . . 1184 1406 Parts Sabotaged . | . . . . . . . . Parts Stolen . | . . . . . . . . Parts Stripped . | . . . . . . . . Power Chain Reactions 7 | . . 7 . . . . . Alert | -11 -10 -9 -9 -9 -8 -8 -8 ------- Run | Yrd Mat Mat Min Exi Min Mat Sto Peak Influence 937 | . 184 427 204 . 172 264 937 Initial 154 | . . 35 154 . . 13 83 Average 212 | . 71 232 197 . 54 154 365 Maximum Alert Level 3 | . . 2 1 . . 1 3 Low Security (%) 66 | 100 100 44 15 . 100 77 43 Level 1 19 | . . 52 84 . . 22 15 Level 2 6 | . . 3 . . . . 16 Level 3 8 | . . . . . . . 23 Level 4 . | . . . . . . . . Level 5 . | . . . . . . . . High Security . | . . . . . . . . Max Security . | . . . . . . . . Squads Dispatched 17 | . . 1 . . . 4 12 Investigation 5 | . . . . . . 2 3 Extermination . | . . . . . . . . Reinforcement 4 | . . 1 . . . 2 1 Assault 2 | . . . . . . . 2 Garrison 6 | . . . . . . . 6 Intercept . | . . . . . . . . Searches Triggered . | . . . . . . . . Construction Impeded . | . . . . . . . . Haulers Reinforced . | . . . . . . . . Active Scanning Responses . | . . . . . . . . Cargo Convoy Interrupts . | . . . . . . . . Stealth | -11 -10 -9 -9 -9 -8 -8 -8 --------- Run | Yrd Mat Mat Min Exi Min Mat Sto Distress Signals 9 | . . 4 . . . 3 2 Communications Jammed . | . . . . . . . . Distress Signals . | . . . . . . . . Times Spotted 159 | . 15 36 2 . 7 33 66 Peak Tracking Total 7 | . 4 6 2 . 3 3 7 Tactical Retreats 14 | . 1 2 . . 1 1 9 Traps | -11 -10 -9 -9 -9 -8 -8 -8 ------- Run | Yrd Mat Mat Min Exi Min Mat Sto Traps Triggered 5 | . 2 . . . . 1 2 Indirectly . | . . . . . . . . Trap Hack Attempts . | . . . . . . . . Triggered . | . . . . . . . . Disarmed . | . . . . . . . . Reprogrammed . | . . . . . . . . Reused . | . . . . . . . . Traps Reconfigurated 6 | . . . . . . 4 2 Traps Extracted . | . . . . . . . . Installed . | . . . . . . . . Triggered . | . . . . . . . . Machines | -11 -10 -9 -9 -9 -8 -8 -8 ---------- Run | Yrd Mat Mat Min Exi Min Mat Sto Machines Disabled 22 | . . 1 . . 6 7 8 Max in Single Turn 1 | . . 1 . . 1 1 1 Machines Repaired . | . . . . . . . . Machines Dismantled . | . . . . . . . . Machines Sabotaged . | . . . . . . . . Overloaded Fab Kills . | . . . . . . . . Hacking | -11 -10 -9 -9 -9 -8 -8 -8 --------- Run | Yrd Mat Mat Min Exi Min Mat Sto Machines Accessed 32 | . 4 5 . 5 2 6 10 Terminals 21 | . 4 4 . . 2 4 7 Fabricators . | . . . . . . . . Repair Stations 4 | . . 1 . . . 1 2 Recycling Units 1 | . . . . . . . 1 Scanalyzers 1 | . . . . . . 1 . Garrison Access . | . . . . . . . . Total Hacks 119 | . 10 16 . 50 6 13 24 Successful 82 | . 3 8 . 50 5 5 11 Failed 35 | . 7 8 . . . 7 13 Catastrophic 8 | . 1 3 . . . 3 1 Database Lockouts 2 | . . . . . 1 1 . Manual 46 | . 7 10 . 1 8 11 9 Terminals 54 | . 10 13 . . 6 9 16 Fabricators . | . . . . . . . . Repair Stations 12 | . . 3 . . . 2 7 Recycling Units 1 | . . . . . . . 1 Scanalyzers 2 | . . . . . . 2 . Garrison Access . | . . . . . . . . Terminal Hacks 72 | . 3 6 . 50 5 1 7 Record 57 | . . . . 49 5 1 2 Robot Analysis 2 | . 1 1 . . . . . Open Door 3 | . . . . . . . 3 Branch Access Points 1 | . . . . . . . 1 Terminal Index 1 | . . 1 . . . . . Alert Level 1 | . . 1 . . . . . Reinforcement Status 1 | . . 1 . . . . . Garrison Status 1 | . . 1 . . . . . Registered Components 4 | . 2 1 . . . . 1 Derelict Proto ID Bank 1 | . . . . 1 . . . Fabricator Hacks . | . . . . . . . . Repair Station Hacks 7 | . . 2 . . . 2 3 Scan Component 4 | . . 1 . . . 1 2 Repair 3 | . . 1 . . . 1 1 Recycling Unit Hacks 1 | . . . . . . . 1 Retrieve Components 1 | . . . . . . . 1 Scanalyzer 2 | . . . . . . 2 . Insert Component 1 | . . . . . . 1 . Analyze 1 | . . . . . . 1 . Garrison Access Hacks . | . . . . . . . . Unauthorized Hacks . | . . . . . . . . Terminals . | . . . . . . . . Fabricators . | . . . . . . . . Repair Stations . | . . . . . . . . Recycling Units . | . . . . . . . . Scanalyzers . | . . . . . . . . Garrison Access . | . . . . . . . . Data Cores Recovered . | . . . . . . . . Used . | . . . . . . . . Hacking Detections 25 | . 4 5 . . 1 6 9 Full Trace Events 4 | . . . . . . 1 3 Feedback Events . | . . . . . . . . Feedback Blocked . | . . . . . . . . Robot Schematics Acquired . | . . . . . . . . Robots Built . | . . . . . . . . Authchips . | . . . . . . . . Time . | . . . . . . . . Total Robot Build Rating . | . . . . . . . . Part Schematics Acquired 1 | . . . . . . 1 . Parts Built . | . . . . . . . . Authchips . | . . . . . . . . Time . | . . . . . . . . Total Part Build Rating . | . . . . . . . . Parts Repaired 3 | . . 1 . . . 1 1 Time 98 | . . 38 . . . 38 22 Parts Recycled . | . . . . . . . . Recycled Matter . | . . . . . . . . Retrieved Matter . | . . . . . . . . Retrieved Components 10 | . . . . . . . 10 Parts Scanalyzed 1 | . . . . . . 1 . Part Schematics Acquired 1 | . . . . . . 1 . Parts Damaged . | . . . . . . . . Bothacking | -11 -10 -9 -9 -9 -8 -8 -8 ------------ Run | Yrd Mat Mat Min Exi Min Mat Sto Used RIF Installer . | . . . . . . . . Robots Hacked . | . . . . . . . . Non-combat . | . . . . . . . . Combat . | . . . . . . . . Robot Hacks Applied . | . . . . . . . . Relay Couplers Released . | . . . . . . . . Fabnet Peak Effective % . | . . . . . . . . Robots Rewired . | . . . . . . . . Allies Hacked . | . . . . . . . . Hacks Repelled . | . . . . . . . . Allies | -11 -10 -9 -9 -9 -8 -8 -8 -------- Run | Yrd Mat Mat Min Exi Min Mat Sto Total Allies . | . . . . . . . . Largest Group . | . . . . . . . . Highest-Rated Group . | . . . . . . . . Highest-Rated Ally . | . . . . . . . . Total Orders . | . . . . . . . . Ally Attacks . | . . . . . . . . Total Damage . | . . . . . . . . Kills . | . . . . . . . . Allies Corrupted . | . . . . . . . . Allies Melted . | . . . . . . . . Intel | -11 -10 -9 -9 -9 -8 -8 -8 ------- Run | Yrd Mat Mat Min Exi Min Mat Sto Robot Analysis Total 2 | . 1 1 . . . . . Derelict Logs Recovered 1 | . . . 1 . . . . Drone Launches . | . . . . . . . . Drone Recoveries . | . . . . . . . . Exploration | -11 -10 -9 -9 -9 -8 -8 -8 ------------- Run | Yrd Mat Mat Min Exi Min Mat Sto Turns Passed 9375 | 62 660 1079 126 1141 1451 2030 2826 Spaces Moved 4679 | 49 374 508 93 943 881 807 1024 Core 12 | 12 . . . . . . . Treads . | . . . . . . . . Legs 4667 | 37 374 508 93 943 881 807 1024 Wheels . | . . . . . . . . Hover . | . . . . . . . . Flight . | . . . . . . . . Fastest Speed 50 | 50 120 120 120 120 120 120 120 Average Speed 120 | 102 120 120 120 120 120 120 122 Slowest Speed 190 | 120 120 120 120 120 120 122 190 Overloaded Moves . | . . . . . . . . Propulsion Burnouts . | . . . . . . . . Robots Hopped . | . . . . . . . . Cave-ins Triggered 2 | . . . . . . . 2 Exploration Rate (%) 59 | 4 59 45 30 94 101 53 90 Regions Visited 7 Branch Regions 4 Pre-discovered Areas 1 | . . . . 1 . . . Known Exits Taken 2 | . . . . . 1 1 . Unknown Exits Taken 5 | 1 1 1 1 1 . . . Scrap Searched 3 | . . . 1 . 2 . . Spaces Dug 26 | . . . . . . . 26 Terrain Destroyed 85 | . . 8 . . 5 41 31 Melee 26 | . . . . . . . 26 Projectile 7 | . . . . . . 2 5 AOE 52 | . . 8 . . 5 39 . Terrain Rammed . | . . . . . . . . Walls Destroyed . | . . . . . . . . Machines Disabled . | . . . . . . . . Actions | -11 -10 -9 -9 -9 -8 -8 -8 --------- Run | Yrd Mat Mat Min Exi Min Mat Sto Total 7515 | 57 469 825 100 949 1192 1698 2225 Wait 2171 | . 13 183 . . 244 758 973 Move 4672 | 48 373 507 92 942 880 806 1024 Hop . | . . . . . . . . Pick Up 33 | 2 3 6 . 1 5 10 6 Fast Attach 22 | 6 3 4 . . . 1 8 Attach 28 | . 3 5 . . 1 4 15 Detach 2 | . . 1 . . . . 1 Swap 56 | 1 6 16 2 1 8 14 8 Drop 45 | . 1 11 2 2 10 14 5 Fire 335 | . 67 92 4 2 44 91 35 Melee 150 | . . . . . . . 150 Ram . | . . . . . . . . Kick . | . . . . . . . . Crush . | . . . . . . . . Escape Stasis . | . . . . . . . . Rewire 1 | . . . . 1 . . . Trap . | . . . . . . . . Miscellaneous . | . . . . . . . . Route ------- -11/Scrapyard -10/Materials (discovered 3 exits: *Mat x2 / [*Min]) -9/Materials -9/Mines (discovered 2 exits: *Mat / *Exi) -9/Exiles (discovered 2 exits: *Min x2) -8/Mines (discovered 2 exits: *Mat x2) -8/Materials -8/Storage (discovered 2 exits: *Fac / Rec) History --------- Turn | Location | Event 5 | -11/Scrapyard | Discovered new exit (range 15) 63 | -11/Scrapyard | Entered Materials 109 | -10/Materials | Discovered new exit (range 12) 187 | -10/Materials | Discovered new exit (range 14) 307 | -10/Materials | Build established: Mutant 374 | -10/Materials | Lost 3 parts (2p1n) 412 | -10/Materials | Core integrity fell below 50% 677 | -10/Materials | Discovered new exit (range 8) 723 | -10/Materials | Entered another Materials area 723 | -9/Materials | Evolved 2 slots: Propulsion x2 745 | -9/Materials | Build established: Scavenger-Mutant 1502 | -9/Materials | Discovered new exit (range 8) 1746 | -9/Materials | Repaired Imp. Heat Sink 1802 | -9/Materials | Entered Mines 1819 | -9/Mines | Met a Derelict bent on vengeance 1829 | -9/Mines | Discovered new exit (range 9) 1856 | -9/Mines | Learned Materials emergency access door positions 1922 | -9/Mines | Deemed a non-threat by the Exiles lab entrance 1923 | -9/Mines | Discovered new exit (range 5) 1928 | -9/Mines | Entered Exiles 1973 | -9/Exiles | Met 8R-AWN 1990 | -9/Exiles | Met EX-HEX 2071 | -9/Exiles | Met EX-DEC 2106 | -9/Exiles | Learned location of Zion (-6) 2208 | -9/Exiles | Met EX-BIN 2249 | -9/Exiles | Aligned with FarCom system 2250 | -9/Exiles | Given EX-Vault access code 2405 | -9/Exiles | Opened EX-Vault 2412 | -9/Exiles | Found Trap Reconfigurator 2438 | -9/Exiles | Warned to stay clear of 0b10 Research branches 2541 | -9/Exiles | Discovered new exit (range 10) 2637 | -9/Exiles | Visited The Gauntlet 2699 | -9/Exiles | Build established: Mutant 2898 | -9/Exiles | Discovered new exit (range 15) 3069 | -9/Exiles | Left Exiles lab with Trap Reconfigurator 3069 | -9/Exiles | Entered Mines 3233 | -8/Mines | Discovered new exit (range 16) 3339 | -8/Mines | Identified exit to Materials 3708 | -8/Mines | Central database locked down 3780 | -8/Mines | Build established: Scavenger-Mutant 4089 | -8/Mines | Discovered exit to Materials (range 10) 4520 | -8/Mines | Entered Materials 4520 | -8/Materials | Evolved 2 slots: Utility x2 4860 | -8/Materials | Repaired Imp. Heat Sink 5255 | -8/Materials | Central database locked down 6019 | -8/Materials | Discovered new exit (range 13) 6533 | -8/Materials | Identified exit to Storage 6550 | -8/Materials | Entered Storage 6643 | -8/Storage | Repaired Imp. Carbon-fiber Leg 8167 | -8/Storage | Discovered new exit (range 6) 8172 | -8/Storage | Identified exit to Factory 8267 | -8/Storage | Identified exit to Recycling 8531 | -8/Storage | Garrison activated, responded to threat 8542 | -8/Storage | Core integrity fell below 50% 8587 | -8/Storage | Lost 3 parts (1n1u1w) 8950 | -8/Storage | First assault squad dispatched 9086 | -8/Storage | Lost 7 parts (5n1u1w) 9128 | -8/Storage | Garrison activated, responded to threat 9318 | -8/Storage | Build established: Mutant 9326 | -8/Storage | Crushed by falling debris 9326 | -8/Storage | Core integrity fell below 20% 9340 | -8/Storage | Crushed by falling debris 9340 | -8/Storage | System corruption reached 10% 9371 | -8/Storage | Lost 3 parts (1p1n1u) 9376 | -8/Storage | Destroyed by G-47 Trooper with Particle Gun Last Messages --------------- station. 09339_ Backup Power I tumbles out of repair station. 09340_ The unstable cave ceiling collapses. 09340_ Crushed by falling debris. 09340_ Imp. Aluminum Leg destroyed. 09340_ System corrupted by crushing effect (+1). 09340_ Imp. Signal Interpreter destroyed. 09340_ System corrupted by crushing effect (+2). 09340_ Backup Power I crushed. 09350_ ALERT: Significant disruption in Zone 4V, assault force dispatched. 09351_ System corrupted: Matter fused (-5). 09353_ Acquired 35 matter. 09367_ C-30 ARC bursts open, deploying its payload. 09367_ G-50 Soldier unfolds itself. 09367_ G-47 Trooper unfolds itself. 09367_ I-25 Savior unfolds itself. 09376_ Critical hit (Burn: +37). Map ----- +----------------------------------------------------+ | ???????????# ?????????### """#????? | | +????# #???????? # [[*Y"#????? | | #????# #??????""" # *%"""#????? | | #????# #??????"]" # [#???????? | | +????# #??????"!" #* ! #???????? | | #####????# #?#????" %+! % % #???????? | | #??????### #?# ??"""" # # ######???????? | | + ????? # #?# """ ##########????????????? | | ### ??? # #?# #???##????????????????? | | ??# ""??? # #?# %#?### ###?????????????? | | ??# "%??? # #?####/###/#?# #?????????????? | | ??# ?=[""" + #????#%#?#r### """ #?????????????? | | ??# "?"!!" # ######i### #"" """ ###???????????? | | ??# ""!! # + % # #"T """ ""#???????????? | | ### """" # #### # #"" """ T"#???????????? | | + + #??# #g#?# """ ""#???????????? | | #####+#######+##### # #?# ####??????????? | | ????# #??# # g# ### """#??????????? | | ????# #??# # g + %+[ R"#??????????? | | ????# #??# """" # g #g ## " ######?????? | | ????# #??# "" [" # # ## [ ###[ # ##????? | | ????# #??# """ " # g# ## =%=######## #????? | | ????# #??# "*=" " # # #####+##T#"???# #????? | | ????# #??# "[=" # + [%% "?>?###????? | | ##### #### """" # # [%%= "???# #????? | | + #######@######+####"######????? | | ###################?# ==%=####" ###????? | | !!!!#???????????????# ==%%# #####?????? | | #???????????????# """" """" #####?????????? | | !!!!#???????????????# """" """" #?????????????? | | #####???????????????# """" """" #?????????????? | | ????????????????????# """" """" #?????????????? | | ????????????????????###############?????????????? | | | | | | | | | | | | | | | | | | | | | | | | | | | | | | | | | | | +----------------------------------------------------+ Best States ------------- Heat Dissipation 45 Energy Generation 18 Energy Capacity 280 Matter Stores 300 Matter Capacity 300 Sight Range 16 Terrain Scan Density 10 Armor Coverage 300 Evasion (%) 55 Targeting Accuracy 8 Item Schematics ----------------- Imp. Titanium Leg | -8/Materials | Scanalyzed Robot Schematics ------------------ None Fabricated ------------ Nothing Alien Tech Used ----------------- None Achievements -------------- None Challenges ------------ None Game ------ Seed TiamatZhirovMegatreads Manual? 0 Play Time 01:28:26 Cumulative 54.7 hours Start 2025.03.17 @ 13:22:56 End 2025.03.17 @ 15:11:10 Sessions 1 Manual Loads 0 Difficulty Rogue Special Mode None Game No. 32 Rogue 32 Adventurer 0 Explorer 0 Win Type - Total 0 Types 0/0/0/0/0/0/0/0/0 Lore% 23 Gallery% 42 Achievement% 43 Wizard Run 0 Options --------- Layout 1 ASCII 0 Keyboard 1 Movement Numpad Keybinds 0 Fullscreen 1 Font 24/Smallcaps Map View 50x35 Zoom Use 0% Tactical HUD 1 Map Filters NONE Filters NONE Steam 1 RUN: 268eee13-9611-4cf1-9cb9-61fb86dd4416